[Event "Kupreichik Memorial Open 2018"]
[Site "Minsk"]
[Date "2018.06.22"]
[Round "6"]
[White "Polovkov, Valery"]
[Black "Tarasenka, Aliaksandra"]
[Result "0-1"]
[ECO "A00"]
[WhiteElo "1830"]
[BlackElo "1682"]
[Annotator "NA"]
[PlyCount "74"]
[EventDate "2018.06.21"]
[EventCountry "BLR"]
[SourceTitle "playchess.com"]
[Source "ChessBase"]
[SourceQuality "1"]
[TimeControl "900+10"]

1. g3 {[%emt 0:00:00]} f5 {[%emt 0:00:08]} 2. Bg2 {[%emt 0:00:00]} Nf6 {[%emt 0:00:02]} 3. d3 {[%emt 0:00:03]} d6 {[%emt 0:00:08]} 4. b3 {[%emt 0:00:17]} Nc6 {[%emt 0:00:11]} 5. Bb2 {[%emt 0:00:02]} e5 {[%emt 0:00:02]} 6. Nd2 {[%emt 0:00:04]} Be7 {[%emt 0:00:22]} 7. e3 {[%emt 0:00:02]} O-O {[%emt 0:00:04]} 8. Ne2 {[%emt 0:00:02]} Be6 {[%emt 0:00:29]} 9. h3 {[%emt 0:00:05]} Qd7 {[%emt 0:00:23]} 10. f4 {[%emt 0:00:10]} Nd5 {[%emt 0:01:00]} 11. Nf1 {[%emt 0:00:33]} exf4 {[%emt 0:00:47]} 12. exf4 {[%emt 0:00:12]} Rae8 {[%emt 0:00:10]} 13. Qd2 {[%emt 0:00:11]} a5 {[%emt 0:00:21]} 14. a3 {[%emt 0:00:19]} Bf6 {[%emt 0:01:04]} 15. d4 {[%emt 0:00:18]} Bf7 {[%emt 0:00:55]} 16. O-O-O {[%emt 0:00:16]} a4 {[%emt 0:00:19]} 17. b4 {[%emt 0:00:06]} Nb6 {[%emt 0:00:10]} 18. Ne3 Qe7 {[%emt 0:00:35]} 19. Nxf5 {[%emt 0:01:50]} Qxe2 {[%emt 0:00:06]} 20. Bf1 {[%emt 0:01:11]} Qxd2+ {[%emt 0:00:23]} 21. Kxd2 {[%emt 0:00:23]} Bg6 {[%emt 0:00:32]} 22. Ne3 {[%emt 0:00:59]} Nxd4 {[%emt 0:00:16]} 23. Bxd4 {[%emt 0:00:41]} Bxd4 {[%emt 0:00:02]} 24. Nc4 {[%emt 0:00:10]} Nxc4+ {[%emt 0:00:09]} 25. Bxc4+ {[%emt 0:00:01]} Bf7 {[%emt 0:00:01]} 26. Bxf7+ {[%emt 0:00:15]} Rxf7 {[%emt 0:00:05]} 27. Kd3 {[%emt 0:00:23]} Bf2 {[%emt 0:00:13]} 28. Rhf1 {[%emt 0:01:00]} Bxg3 {[%emt 0:00:05]} 29. f5 {[%emt 0:00:04]} Bh4 {[%emt 0:00:13]} 30. Rf4 {[%emt 0:00:31]} Bf6 {[%emt 0:00:04]} 31. c3 {[%emt 0:00:31]} Rfe7 {[%emt 0:00:04]} 32. Rf3 {[%emt 0:00:05]} Bg5 {[%emt 0:00:07]} 33. Rg1 {[%emt 0:00:11]} Re3+ {[%emt 0:00:42]} 34. Rxe3 {[%emt 0:00:06]} Rxe3+ {[%emt 0:00:02]} 35. Kd4 {[%emt 0:00:04]} Bh6 {[%emt 0:00:03]} 36. h4 {[%emt 0:00:32]} Rf3 {[%emt 0:00:11]} 37. Kd5 {[%emt 0:00:41]} Kf7 {[%emt 0:00:19]} 0-1

[Event "Kupreichik Memorial Open 2018"]
[Site "Minsk"]
[Date "2018.06.22"]
[Round "6"]
[White "Masjuk, Vladimir"]
[Black "Sukalina, Alina"]
[Result "1-0"]
[ECO "C88"]
[WhiteElo "1829"]
[BlackElo "1673"]
[Annotator "NA"]
[PlyCount "119"]
[EventDate "2018.06.21"]
[EventCountry "BLR"]
[SourceTitle "playchess.com"]
[Source "ChessBase"]
[SourceQuality "1"]
[TimeControl "900+10"]

1. e4 {[%emt 0:00:00]} e5 {[%emt 0:00:04]} 2. Nf3 {[%emt 0:00:00]} Nc6 {[%emt 0:00:04]} 3. Bb5 {[%emt 0:00:00]} a6 {[%emt 0:00:04]} 4. Ba4 {[%emt 0:00:01]} Nf6 {[%emt 0:00:03]} 5. O-O {[%emt 0:00:04]} Be7 {[%emt 0:00:04]} 6. Re1 {[%emt 0:00:04]} b5 {[%emt 0:00:15]} 7. Bb3 {[%emt 0:00:02]} d6 {[%emt 0:00:07]} 8. c3 {[%emt 0:00:04]} Na5 {[%emt 0:00:08]} 9. Bc2 {[%emt 0:00:02]} c5 {[%emt 0:00:03]} 10. h3 {[%emt 0:00:04]} O-O {[%emt 0:00:15]} 11. d3 {[%emt 0:00:05]} Re8 {[%emt 0:01:39]} 12. Nbd2 {[%emt 0:00:08]} Bf8 {[%emt 0:00:11]} 13. Nf1 {[%emt 0:00:04]} g6 {[%emt 0:00:36]} 14. Bg5 {[%emt 0:00:15]} h6 {[%emt 0:01:51]} 15. Be3 {[%emt 0:00:39]} Bg7 {[%emt 0:00:28]} 16. Ng3 {[%emt 0:00:42]} Bb7 {[%emt 0:01:29]} 17. Rc1 {[%emt 0:00:05]} Rc8 {[%emt 0:00:48]} 18. b4 {[%emt 0:00:15]} cxb4 {[%emt 0:01:05]} 19. cxb4 {[%emt 0:00:03]} Nc6 {[%emt 0:00:02]} 20. Bb3 {[%emt 0:00:34]} Nxb4 {[%emt 0:01:14]} 21. Qd2 {[%emt 0:00:05]} a5 {[%emt 0:02:10]} 22. Bxh6 {[%emt 0:00:06]} Nc6 {[%emt 0:02:25]} 23. Qg5 {[%emt 0:02:27]} Nh7 {[%emt 0:00:38]} 24. Qxg6 {[%emt 0:00:15]} Qf6 {[%emt 0:00:14]} 25. Qxg7+ {[%emt 0:00:16]} Qxg7 {[%emt 0:00:02]} 26. Bxg7 {[%emt 0:00:02]} Kxg7 {[%emt 0:00:01]} 27. Nf5+ {[%emt 0:00:03]} Kf6 {[%emt 0:00:18]} 28. Nxd6 {[%emt 0:00:02]} a4 {[%emt 0:00:45]} 29. Nxe8+ {[%emt 0:00:09]} Rxe8 {[%emt 0:00:02]} 30. Bd5 {[%emt 0:00:03]} Na5 {[%emt 0:00:06]} 31. Bxb7 {[%emt 0:00:06]} Nxb7 {[%emt 0:00:01]} 32. Rc6+ {[%emt 0:00:07]} Kg7 {[%emt 0:00:05]} 33. Rb6 {[%emt 0:00:05]} Nc5 {[%emt 0:00:05]} 34. Rxb5 {[%emt 0:00:22]} Nxd3 {[%emt 0:00:01]} 35. Re3 {[%emt 0:00:04]} Nc1 {[%emt 0:01:34]} 36. Nxe5 {[%emt 0:00:39]} Nxa2 {[%emt 0:00:28]} 37. f4 {[%emt 0:00:22]} Re7 {[%emt 0:01:34]} 38. Ra3 {[%emt 0:00:26]} Nc1 {[%emt 0:00:07]} 39. Kf2 {[%emt 0:00:42]} Nf6 {[%emt 0:00:06]} 40. Kf3 {[%emt 0:00:12]} Nb3 {[%emt 0:00:07]} 41. Rxa4 {[%emt 0:00:22]} Nd2+ {[%emt 0:00:04]} 42. Ke3 {[%emt 0:00:05]} Nf1+ {[%emt 0:00:28]} 43. Kf2 {[%emt 0:00:14]} Nd2 {[%emt 0:00:02]} 44. Rbb4 {[%emt 0:00:07]} Nd7 {[%emt 0:00:25]} 45. Nxd7 {[%emt 0:00:05]} Rxd7 {[%emt 0:00:01]} 46. Rd4 {[%emt 0:00:07]} Rxd4 47. Rxd4 {[%emt 0:00:02]} Nb3 {[%emt 0:00:06]} 48. Rd5 {[%emt 0:00:05]} Kf6 {[%emt 0:00:07]} 49. h4 {[%emt 0:00:13]} Na1 {[%emt 0:00:12]} 50. Rd6+ {[%emt 0:01:03]} Kg7 {[%emt 0:00:12]} 51. Rc6 {[%emt 0:00:08]} Nb3 {[%emt 0:00:05]} 52. Ke3 {[%emt 0:00:18]} Na5 {[%emt 0:00:01]} 53. Rc7 {[%emt 0:00:09]} Kg6 {[%emt 0:00:30]} 54. g4 {[%emt 0:00:04]} Nb3 {[%emt 0:00:07]} 55. h5+ {[%emt 0:00:04]} Kg7 {[%emt 0:00:11]} 56. g5 {[%emt 0:00:04]} Na5 {[%emt 0:00:09]} 57. g6 {[%emt 0:00:07]} Kf8 {[%emt 0:00:15]} 58. Rxf7+ {[%emt 0:00:03]} Kg8 {[%emt 0:00:01]} 59. Rc7 {[%emt 0:00:04]} Nb3 {[%emt 0:00:02]} 60. h6 {[%emt 0:00:06]} 1-0

[Event "Kupreichik Memorial Open 2018"]
[Site "Minsk"]
[Date "2018.06.22"]
[Round "6"]
[White "Rybakova, Polina"]
[Black "Ustiugov, Boris"]
[Result "1-0"]
[ECO "B46"]
[WhiteElo "1826"]
[BlackElo "1614"]
[Annotator "NA"]
[PlyCount "58"]
[EventDate "2018.06.21"]
[EventCountry "BLR"]
[SourceTitle "playchess.com"]
[Source "ChessBase"]
[SourceQuality "1"]
[TimeControl "900+10"]

1. e4 {[%emt 0:00:00]} c5 {[%emt 0:00:02]} 2. Nf3 {[%emt 0:00:00]} e6 {[%emt 0:00:01]} 3. d4 {[%emt 0:00:05]} cxd4 {[%emt 0:00:01]} 4. Nxd4 {[%emt 0:00:01]} a6 {[%emt 0:00:01]} 5. Nc3 {[%emt 0:00:26]} Nc6 {[%emt 0:00:09]} 6. Be2 {[%emt 0:00:13]} Bc5 {[%emt 0:00:10]} 7. Nb3 {[%emt 0:00:11]} Ba7 {[%emt 0:00:03]} 8. O-O {[%emt 0:00:05]} Nf6 {[%emt 0:00:06]} 9. Bg5 {[%emt 0:00:31]} Qc7 {[%emt 0:00:29]} 10. Kh1 {[%emt 0:00:54]} d6 {[%emt 0:00:09]} 11. Qd2 {[%emt 0:01:03]} O-O {[%emt 0:01:44]} 12. Bxf6 {[%emt 0:00:32]} gxf6 {[%emt 0:00:02]} 13. Rad1 {[%emt 0:00:05]} Rd8 {[%emt 0:00:25]} 14. Qh6 {[%emt 0:00:19]} Qe7 {[%emt 0:00:27]} 15. Rd3 {[%emt 0:01:04]} Ne5 {[%emt 0:02:47]} 16. Rh3 {[%emt 0:00:35]} Ng6 {[%emt 0:00:09]} 17. Qxh7+ {[%emt 0:00:22]} Kf8 {[%emt 0:00:02]} 18. Bh5 {[%emt 0:00:53]} Ke8 {[%emt 0:06:30]} 19. Bxg6 {[%emt 0:00:05]} Kd7 {[%emt 0:00:40]} 20. Qxf7 {[%emt 0:00:25]} Qxf7 {[%emt 0:00:03]} 21. Bxf7 {[%emt 0:00:02]} Rf8 {[%emt 0:00:37]} 22. Rh7 {[%emt 0:00:25]} Kc6 {[%emt 0:00:01]} 23. Ne2 {[%emt 0:00:37]} e5 {[%emt 0:01:18]} 24. Bd5+ {[%emt 0:00:34]} Kb6 {[%emt 0:00:22]} 25. a4 {[%emt 0:00:09]} Rb8 {[%emt 0:00:06]} 26. Nc3 {[%emt 0:00:15]} a5 {[%emt 0:00:41]} 27. Nb5 {[%emt 0:00:05]} Rd8 {[%emt 0:00:15]} 28. Nd2 {[%emt 0:00:49]} Ka6 {[%emt 0:00:32]} 29. Rf7 {[%emt 0:00:41]} Bc5 {time} 1-0

[Event "Kupreichik Memorial Open 2018"]
[Site "Minsk"]
[Date "2018.06.22"]
[Round "6"]
[White "Girshgorn, Maria"]
[Black "Kashtelyan, Valentin"]
[Result "1-0"]
[ECO "D02"]
[WhiteElo "1805"]
[BlackElo "1604"]
[Annotator "NA"]
[PlyCount "81"]
[EventDate "2018.06.21"]
[EventCountry "BLR"]
[SourceTitle "playchess.com"]
[Source "ChessBase"]
[SourceQuality "1"]
[TimeControl "900+10"]

1. d4 {[%emt 0:00:00]} d5 {[%emt 0:00:18]} 2. Nf3 {[%emt 0:00:00]} e6 {[%emt 0:00:06]} 3. g3 {[%emt 0:00:00]} g6 {[%emt 0:00:05]} 4. Bg2 {[%emt 0:00:00]} Bg7 {[%emt 0:00:01]} 5. O-O {[%emt 0:00:02]} Nf6 {[%emt 0:00:01]} 6. c4 {[%emt 0:00:03]} c6 {[%emt 0:00:02]} 7. Nc3 {[%emt 0:00:02]} O-O {[%emt 0:00:02]} 8. Bf4 {[%emt 0:01:01]} Nh5 {[%emt 0:00:16]} 9. Bg5 {[%emt 0:00:06]} Nf6 {[%emt 0:00:07]} 10. e4 {[%emt 0:00:09]} dxe4 {[%emt 0:00:13]} 11. Nxe4 {[%emt 0:00:03]} Nbd7 {[%emt 0:00:54]} 12. Nd6 {[%emt 0:00:50]} h6 {[%emt 0:00:20]} 13. Bf4 {[%emt 0:00:04]} Ne8 {[%emt 0:00:46]} 14. Nxe8 {[%emt 0:00:47]} Rxe8 {[%emt 0:00:19]} 15. Qd2 {[%emt 0:00:05]} Kh7 {[%emt 0:00:07]} 16. d5 {[%emt 0:00:21]} cxd5 {[%emt 0:00:44]} 17. cxd5 {[%emt 0:00:02]} exd5 {[%emt 0:00:17]} 18. Qxd5 {[%emt 0:00:03]} Nf6 {[%emt 0:00:22]} 19. Qxf7 {[%emt 0:00:15]} Qa5 {[%emt 0:03:20]} 20. Rac1 {[%emt 0:03:51]} Be6 {[%emt 0:00:45]} 21. Qxb7 {[%emt 0:00:38]} Bd5 {[%emt 0:00:33]} 22. Qc7 {[%emt 0:00:13]} Qxa2 {[%emt 0:00:30]} 23. Be5 {[%emt 0:02:00]} Rac8 {[%emt 0:01:38]} 24. Qxc8 {[%emt 0:00:32]} Rxc8 {[%emt 0:00:01]} 25. Rxc8 {[%emt 0:00:02]} Qb3 {[%emt 0:00:16]} 26. Rb8 {[%emt 0:05:14]} Qd3 {[%emt 0:01:04]} 27. Ne1 {[%emt 0:00:14]} Qc4 {[%emt 0:00:47]} 28. b3 {[%emt 0:00:39]} Qc6 {[%emt 0:00:09]} 29. Bxf6 {[%emt 0:00:21]} Bxf6 {[%emt 0:00:10]} 30. Bxd5 {[%emt 0:00:12]} Qxd5 {[%emt 0:00:08]} 31. Ng2 {[%emt 0:00:02]} g5 {[%emt 0:00:34]} 32. Ne3 {[%emt 0:00:31]} Qc6 {[%emt 0:00:34]} 33. Rd1 {[%emt 0:00:12]} Be5 {[%emt 0:00:37]} 34. Rbd8 {[%emt 0:00:07]} Bc7 {[%emt 0:01:35]} 35. R8d7+ {[%emt 0:00:20]} Kg6 {[%emt 0:00:20]} 36. Nc4 {[%emt 0:00:04]} Kf5 {[%emt 0:00:45]} 37. R1d5+ {[%emt 0:00:25]} Kg4 {[%emt 0:00:47]} 38. Kg2 {[%emt 0:00:46]} Kh5 {[%emt 0:00:26]} 39. f3 {[%emt 0:00:20]} a5 {[%emt 0:00:27]} 40. Kh3 {[%emt 0:00:24]} a4 {[%emt 0:00:52]} 41. Rg7 {[%emt 0:00:26] time} 1-0

[Event "Kupreichik Memorial Open 2018"]
[Site "Minsk"]
[Date "2018.06.22"]
[Round "6"]
[White "Tkachou, Viktar"]
[Black "Kalugin, Sergey G"]
[Result "1/2-1/2"]
[ECO "A05"]
[WhiteElo "1791"]
[BlackElo "2334"]
[Annotator "NA"]
[PlyCount "88"]
[EventDate "2018.06.21"]
[EventCountry "BLR"]
[SourceTitle "playchess.com"]
[Source "ChessBase"]
[SourceQuality "1"]
[TimeControl "900+10"]

1. Nf3 {[%emt 0:00:00]} Nf6 {[%emt 0:00:03]} 2. c4 {[%emt 0:00:00]} d6 {[%emt 0:00:04]} 3. d4 {[%emt 0:00:09]} g6 {[%emt 0:00:03]} 4. b3 {[%emt 0:00:02]} Bg7 {[%emt 0:00:02]} 5. Bb2 {[%emt 0:00:06]} a5 {[%emt 0:00:14]} 6. a3 {[%emt 0:00:10]} Nbd7 {[%emt 0:00:03]} 7. e3 {[%emt 0:00:06]} O-O {[%emt 0:00:14]} 8. Be2 {[%emt 0:00:09]} c6 {[%emt 0:00:20]} 9. O-O {[%emt 0:00:09]} Qc7 {[%emt 0:00:06]} 10. Nbd2 {[%emt 0:00:13]} Re8 {[%emt 0:00:14]} 11. Qc2 {[%emt 0:00:12]} b6 {[%emt 0:01:52]} 12. b4 {[%emt 0:00:48]} c5 {[%emt 0:00:16]} 13. b5 {[%emt 0:00:40]} cxd4 {[%emt 0:00:14]} 14. Nxd4 {[%emt 0:00:17]} Bb7 {[%emt 0:00:07]} 15. Bf3 {[%emt 0:00:09]} Bxf3 {[%emt 0:01:24]} 16. N2xf3 {[%emt 0:00:04]} Rac8 {[%emt 0:00:51]} 17. Rac1 {[%emt 0:00:48]} Nb8 {[%emt 0:00:06]} 18. Rfd1 {[%emt 0:00:42]} Qb7 {[%emt 0:01:50]} 19. Qb1 {[%emt 0:00:33]} Rc7 {[%emt 0:00:12]} 20. Rc2 {[%emt 0:00:31]} Rec8 {[%emt 0:00:03]} 21. Rdc1 {[%emt 0:00:03]} Nfd7 {[%emt 0:01:24]} 22. Nb3 {[%emt 0:02:37]} a4 {[%emt 0:01:10]} 23. Nbd2 {[%emt 0:00:03]} Bh6 {[%emt 0:00:34]} 24. Ba1 {[%emt 0:00:43]} Nc5 {[%emt 0:00:06]} 25. Ne1 {[%emt 0:02:08]} Nbd7 {[%emt 0:00:25]} 26. Qb4 {[%emt 0:01:06]} Bg7 {[%emt 0:01:05]} 27. Bxg7 {[%emt 0:00:58]} Kxg7 {[%emt 0:00:01]} 28. Rc3 {[%emt 0:00:13]} Nf6 {[%emt 0:00:48]} 29. Nef3 {[%emt 0:00:32]} e5 {[%emt 0:00:43]} 30. Qb1 {[%emt 0:00:16]} Re8 {[%emt 0:00:36]} 31. h3 {[%emt 0:00:33]} Qc8 {[%emt 0:00:11]} 32. Ng5 {[%emt 0:00:20]} e4 {[%emt 0:00:31]} 33. f3 {[%emt 0:00:58]} exf3 {[%emt 0:00:32]} 34. Ngxf3 {[%emt 0:00:02]} Rce7 {[%emt 0:00:12]} 35. Re1 {[%emt 0:00:26]} Nfe4 {[%emt 0:01:09]} 36. Nxe4 {[%emt 0:00:35]} Rxe4 {[%emt 0:00:12]} 37. Nd4 {[%emt 0:00:43]} Qd8 {[%emt 0:00:11]} 38. Nc6 {[%emt 0:01:21]} Qf6 {[%emt 0:00:28]} 39. Qc2 {[%emt 0:00:18]} Qe6 {[%emt 0:00:33]} 40. Qd2 {[%emt 0:00:21]} Kg8 {[%emt 0:00:29]} 41. Nb4 {[%emt 0:00:09]} Re5 {[%emt 0:00:51]} 42. Qd4 {[%emt 0:00:24]} Re4 {[%emt 0:00:08]} 43. Qd2 {[%emt 0:00:06]} Re5 {[%emt 0:00:22]} 44. Qd4 {[%emt 0:00:04]} Re4 {[%emt 0:00:08]} 1/2-1/2

[Event "Kupreichik Memorial Open 2018"]
[Site "Minsk"]
[Date "2018.06.22"]
[Round "6"]
[White "Kolosovskaya, Olga"]
[Black "Boiko, Aleksei"]
[Result "1-0"]
[ECO "D45"]
[WhiteElo "1747"]
[BlackElo "1526"]
[Annotator "NA"]
[PlyCount "87"]
[EventDate "2018.06.21"]
[EventCountry "BLR"]
[SourceTitle "playchess.com"]
[Source "ChessBase"]
[SourceQuality "1"]
[TimeControl "900+10"]

1. d4 {[%emt 0:00:00]} d5 {[%emt 0:00:01]} 2. c4 {[%emt 0:00:00]} c6 {[%emt 0:00:01]} 3. Nf3 {[%emt 0:00:00]} Nf6 {[%emt 0:00:01]} 4. e3 {[%emt 0:00:00]} e6 {[%emt 0:00:02]} 5. Nc3 {[%emt 0:00:00]} Bd6 {[%emt 0:00:02]} 6. Ne5 {[%emt 0:00:02]} Nbd7 {[%emt 0:00:19]} 7. f4 {[%emt 0:00:02]} O-O {[%emt 0:00:04]} 8. Be2 {[%emt 0:00:02]} Ne4 {[%emt 0:00:11]} 9. Nxe4 {[%emt 0:00:32]} dxe4 {[%emt 0:00:03]} 10. Nxd7 {[%emt 0:01:05]} Bxd7 {[%emt 0:00:02]} 11. Qc2 {[%emt 0:00:08]} Bb4+ {[%emt 0:01:29]} 12. Bd2 {[%emt 0:00:09]} Qa5 {[%emt 0:00:01]} 13. a3 {[%emt 0:00:24]} Bxd2+ {[%emt 0:00:03]} 14. Qxd2 {[%emt 0:00:02]} Qxd2+ {[%emt 0:00:15]} 15. Kxd2 {[%emt 0:00:01]} c5 {[%emt 0:00:34]} 16. dxc5 {[%emt 0:00:08]} Rfd8 {[%emt 0:00:29]} 17. Kc3 {[%emt 0:02:27]} Kf8 {[%emt 0:00:14]} 18. Rhd1 {[%emt 0:00:07]} Be8 {[%emt 0:00:08]} 19. Rxd8 {[%emt 0:00:06]} Rxd8 {[%emt 0:00:02]} 20. Rd1 {[%emt 0:00:06]} Rc8 {[%emt 0:00:32]} 21. b4 {[%emt 0:00:03]} Ke7 {[%emt 0:00:03]} 22. Rd4 {[%emt 0:00:03]} f5 {[%emt 0:00:03]} 23. Kb3 {[%emt 0:00:10]} a5 {[%emt 0:00:46]} 24. Rd6 {[%emt 0:01:54]} axb4 {[%emt 0:02:37]} 25. axb4 {[%emt 0:00:03]} Ra8 {[%emt 0:00:02]} 26. Kb2 {[%emt 0:04:30]} Rc8 {[%emt 0:02:13]} 27. Rd1 {[%emt 0:00:24]} Rc7 {[%emt 0:02:00]} 28. Ra1 {[%emt 0:00:16]} g6 {[%emt 0:01:21]} 29. Kc3 {[%emt 0:00:13]} e5 {[%emt 0:01:39]} 30. g3 {[%emt 0:00:54]} Kd8 {[%emt 0:00:36]} 31. Rd1+ {[%emt 0:00:54]} Ke7 {[%emt 0:00:03]} 32. Rd5 {[%emt 0:00:36]} exf4 {[%emt 0:00:03]} 33. gxf4 {[%emt 0:00:01]} h6 {[%emt 0:00:42]} 34. b5 {[%emt 0:00:13]} Rd7 {[%emt 0:00:37]} 35. Rxd7+ {[%emt 0:00:13]} Bxd7 {[%emt 0:00:05]} 36. Kd4 {[%emt 0:00:17]} Ke6 {[%emt 0:00:01]} 37. h4 {[%emt 0:00:12]} Be8 {[%emt 0:00:23]} 38. Bd1 {[%emt 0:00:15]} Bd7 {[%emt 0:00:11]} 39. Bb3 {[%emt 0:00:15]} Be8 {[%emt 0:00:11]} 40. c6 {[%emt 0:00:43]} bxc6 {[%emt 0:00:32]} 41. c5+ {[%emt 0:00:04]} Kd7 {[%emt 0:00:04]} 42. b6 {[%emt 0:00:01]} Kc8 {[%emt 0:00:37]} 43. Ke5 {[%emt 0:00:10]} Bd7 {[%emt 0:00:32]} 44. Bf7 {[%emt 0:00:52]} 1-0

[Event "Kupreichik Memorial Open 2018"]
[Site "Minsk"]
[Date "2018.06.22"]
[Round "6"]
[White "Korniichuk, Oleksandra"]
[Black "Katashuk, Uladzislau"]
[Result "0-1"]
[ECO "B33"]
[WhiteElo "1740"]
[BlackElo "2149"]
[Annotator "NA"]
[PlyCount "92"]
[EventDate "2018.06.21"]
[EventCountry "BLR"]
[SourceTitle "playchess.com"]
[Source "ChessBase"]
[SourceQuality "1"]
[TimeControl "900+10"]

1. e4 {[%emt 0:00:00]} c5 {[%emt 0:00:01]} 2. Nf3 {[%emt 0:00:00]} Nc6 {[%emt 0:00:01]} 3. d4 {[%emt 0:00:02]} cxd4 {[%emt 0:00:02]} 4. Nxd4 {[%emt 0:00:04]} Nf6 {[%emt 0:00:03]} 5. Nc3 {[%emt 0:00:05]} e6 {[%emt 0:00:02]} 6. Be2 {[%emt 0:00:12]} Bb4 {[%emt 0:00:03]} 7. O-O {[%emt 0:00:18]} Bxc3 {[%emt 0:00:05]} 8. bxc3 {[%emt 0:00:05]} Nxe4 {[%emt 0:00:02]} 9. Qd3 {[%emt 0:00:50]} d5 {[%emt 0:00:17]} 10. Ba3 {[%emt 0:00:17]} Nxd4 {[%emt 0:00:57]} 11. cxd4 {[%emt 0:00:48]} Nd6 {[%emt 0:00:55]} 12. Qg3 {[%emt 0:00:50]} Nf5 {[%emt 0:00:02]} 13. Qc3 {[%emt 0:03:48]} f6 {[%emt 0:00:25]} 14. Rfe1 {[%emt 0:01:21]} Kf7 {[%emt 0:00:13]} 15. Bg4 {[%emt 0:00:59]} Nd6 {[%emt 0:00:23]} 16. Qc5 {[%emt 0:04:45]} Ne4 {[%emt 0:00:51]} 17. Qb4 {[%emt 0:00:15]} a5 {[%emt 0:00:10]} 18. Qb3 {[%emt 0:00:29]} f5 {[%emt 0:00:23]} 19. Bf3 {[%emt 0:00:12]} a4 {[%emt 0:02:10]} 20. Qb5 {[%emt 0:00:32]} Nd6 {[%emt 0:02:22]} 21. Qc5 {[%emt 0:00:14]} Nc4 {[%emt 0:00:52]} 22. Bc1 {[%emt 0:00:36]} Qa5 {[%emt 0:00:26]} 23. Qxa5 {[%emt 0:00:18]} Rxa5 {[%emt 0:00:04]} 24. Bf4 {[%emt 0:00:07]} Bd7 {[%emt 0:00:04]} 25. Reb1 {[%emt 0:00:26]} b5 {[%emt 0:00:17]} 26. Rb4 {[%emt 0:00:05]} Kf6 {[%emt 0:00:18]} 27. c3 {[%emt 0:00:13]} g5 {[%emt 0:00:02]} 28. Bc1 {[%emt 0:00:09]} Rc8 {[%emt 0:00:08]} 29. Be2 {[%emt 0:00:10]} Nd6 {[%emt 0:00:02]} 30. Bd2 {[%emt 0:00:28]} Ne4 {[%emt 0:00:02]} 31. Be1 {[%emt 0:00:12]} Nxc3 {[%emt 0:00:03]} 32. Bxc3 {[%emt 0:00:20]} Rxc3 {[%emt 0:00:01]} 33. Bf1 {[%emt 0:00:10]} a3 {[%emt 0:00:14]} 34. g3 {[%emt 0:00:07]} Rc2 {[%emt 0:00:12]} 35. Rab1 {[%emt 0:00:16]} Rxa2 {[%emt 0:00:03]} 36. Bxb5 {[%emt 0:00:02]} Rxb5 {[%emt 0:00:05]} 37. Rxb5 {[%emt 0:00:02]} Bxb5 {[%emt 0:00:01]} 38. Rxb5 {[%emt 0:00:01]} Rb2 {[%emt 0:00:02]} 39. Ra5 {[%emt 0:00:02]} a2 {[%emt 0:00:01]} 40. Kg2 {[%emt 0:00:03]} g4 {[%emt 0:00:01]} 41. Ra6 {[%emt 0:00:06]} h5 {[%emt 0:00:08]} 42. Ra4 {[%emt 0:00:14]} Kg5 {[%emt 0:00:04]} 43. Ra3 {[%emt 0:00:07]} f4 {[%emt 0:00:04]} 44. gxf4+ {[%emt 0:00:07]} Kxf4 {[%emt 0:00:01]} 45. Ra4 {[%emt 0:00:06]} h4 {[%emt 0:00:02]} 46. Ra3 {[%emt 0:00:13]} h3+ 0-1

[Event "Kupreichik Memorial Open 2018"]
[Site "Minsk"]
[Date "2018.06.22"]
[Round "6"]
[White "Bezenson, Anton"]
[Black "Kaliadzich, Maryia"]
[Result "0-1"]
[ECO "A06"]
[WhiteElo "1732"]
[BlackElo "2058"]
[Annotator "NA"]
[PlyCount "66"]
[EventDate "2018.06.21"]
[EventCountry "BLR"]
[SourceTitle "playchess.com"]
[Source "ChessBase"]
[SourceQuality "1"]
[TimeControl "900+10"]

1. Nf3 {[%emt 0:00:00]} d5 {[%emt 0:00:01]} 2. g3 {[%emt 0:00:00]} Nf6 {[%emt 0:00:03]} 3. Bg2 {[%emt 0:00:00]} Bf5 {[%emt 0:00:03]} 4. O-O {[%emt 0:00:01]} e6 {[%emt 0:00:03]} 5. d3 {[%emt 0:00:06]} h6 {[%emt 0:00:04]} 6. Nbd2 {[%emt 0:00:11]} Be7 {[%emt 0:00:18]} 7. Qe1 {[%emt 0:00:02]} O-O {[%emt 0:00:29]} 8. e4 {[%emt 0:00:02]} Bh7 {[%emt 0:00:05]} 9. Qe2 {[%emt 0:00:15]} c5 {[%emt 0:00:30]} 10. e5 {[%emt 0:00:13]} Nfd7 {[%emt 0:00:09]} 11. a4 {[%emt 0:00:02]} Nc6 {[%emt 0:00:06]} 12. Re1 {[%emt 0:01:42]} Nb4 {[%emt 0:00:26]} 13. Nf1 {[%emt 0:00:03]} c4 {[%emt 0:00:18]} 14. Rd1 {[%emt 0:00:54]} Rc8 {[%emt 0:01:05]} 15. Ne3 {[%emt 0:00:41]} cxd3 {[%emt 0:01:42]} 16. cxd3 {[%emt 0:00:04]} Nc5 {[%emt 0:00:07]} 17. Bd2 {[%emt 0:03:03]} Bxd3 {[%emt 0:00:32]} 18. Qe1 {[%emt 0:00:02]} Nc2 {[%emt 0:00:20]} 19. Nxc2 {[%emt 0:00:14]} Bxc2 {[%emt 0:00:02]} 20. Nd4 {[%emt 0:01:30]} Bxd1 {[%emt 0:01:18]} 21. Qxd1 {[%emt 0:00:11]} Ne4 {[%emt 0:01:38]} 22. Be3 {[%emt 0:01:00]} a6 {[%emt 0:00:33]} 23. Qg4 {[%emt 0:00:49]} Kh8 {[%emt 0:00:54]} 24. Bxe4 {[%emt 0:03:56]} dxe4 {[%emt 0:00:03]} 25. Rd1 {[%emt 0:00:03]} Qa5 {[%emt 0:01:11]} 26. b3 {[%emt 0:00:30]} Qxe5 {[%emt 0:00:49]} 27. Bf4 {[%emt 0:00:59]} Qf6 {[%emt 0:00:32]} 28. Qh5 {[%emt 0:02:00]} Rc5 29. Qe2 {[%emt 0:00:35]} e5 {[%emt 0:00:55]} 30. b4 {[%emt 0:00:01]} Rcc8 {[%emt 0:00:12]} 31. Qxe4 {[%emt 0:00:24]} exf4 {[%emt 0:00:38]} 32. Qxb7 {[%emt 0:00:03]} fxg3 {[%emt 0:00:10]} 33. hxg3 {[%emt 0:00:08]} Rcd8 {[%emt 0:00:10]} 0-1